bitfinex-derivatives/quotes_SOLF0:USTF0_20250428
["timestamp","ask_amount","ask_price","bid_price","bid_amount"]
[1745864755933,6.8138,146.71,146.69,6.8144]
[1745864757135,6.8135,146.72,146.69,6.8144]
[1745864757335,6.8135,146.72,146.7,6.814]
[1745864757937,6.8135,146.72,146.69,6.8145]
[1745864758137,6.8135,146.72,146.68,25.12]
[1745864758539,6.8135,146.72,146.69,6.8146]
[1745864758839,6.8135,146.72,146.68,25.12]
[1745864759039,6.8135,146.72,146.69,6.8146]
[1745864759638,6.8135,146.72,146.7,6.8141]
[1745864762338,6.8138,146.71,146.69,6.8144]
[1745864762638,14.73463613,146.73,146.69,6.8144]
[1745864763338,6.8135,146.72,146.69,6.8144]
[1745864763641,6.8135,146.72,146.7,6.8141]
[1745864764134,2.1038,146.74,146.68,39.85463613]
[1745864764537,14.73463613,146.75,146.68,39.85463613]
[1745864764538,6.812,146.75,146.68,39.85463613]
[1745864764738,29.2403,146.76,146.73,6.8126]
[1745864765038,27.1318,146.76,146.73,6.8126]
[1745864765240,27.1318,146.76,146.7,14.73463613]
[1745864766840,6.8122,146.75,146.72,6.813]
[1745864767642,6.8123,146.74,146.71,6.8135]
[1745864769243,6.8121,146.75,146.72,6.8132]
[1745864770540,6.8124,146.74,146.71,6.8136]
[1745864770943,27.1318,146.76,146.71,6.8136]
[1745864771142,6.8121,146.75,146.71,6.8136]
[1745864771345,27.1318,146.76,146.71,6.8136]
[1745864771544,14.73463613,146.75,146.7,6.814]
[1745864772644,6.813,146.73,146.7,6.814]
[1745864772940,14.73463613,146.73,146.68,25.12]
[1745864773146,6.814,146.71,146.68,25.12]
[1745864773345,6.814,146.71,146.68,31.9349]
[1745864773545,6.814,146.71,146.68,25.12]
[1745864774046,6.814,146.71,146.68,31.935]
[1745864774448,6.8142,146.7,146.68,25.12]
[1745864774745,6.8142,146.7,146.67,6.8154]
[1745864775146,14.73463613,146.71,146.65,25.1]
[1745864775743,6.815,146.69,146.65,25.1]
[1745864776044,14.73463613,146.71,146.65,25.1]
[1745864776445,6.8149,146.69,146.66,6.8158]
[1745864778150,6.8149,146.69,146.65,31.9163]
[1745864778847,6.8149,146.69,146.66,6.816]
[1745864780750,6.8144,146.7,146.67,6.8156]
[1745864781650,6.8147,146.69,146.67,6.8156]
[1745864781848,14.73463613,146.71,146.67,6.8156]
[1745864782350,14.73463613,146.71,146.66,6.8159]
[1745864782851,14.73463613,146.71,146.65,25.1]
[1745864783450,25.1,146.72,146.65,39.83463613]
[1745864783748,31.9136,146.72,146.68,6.8148]
[1745864783939,31.9136,146.72,146.65,39.83463613]
[1745864784143,31.9136,146.72,146.65,25.1]
[1745864784144,14.73463613,146.71,146.65,25.1]
[1745864784548,6.8145,146.7,146.67,6.8153]
[1745864785149,6.8145,146.7,146.68,6.815]
[1745864785954,14.73463613,146.71,146.65,25.1]
[1745864786454,14.73463613,146.71,146.69,6.8144]
[1745864786655,46.64813613,146.72,146.69,6.8144]
[1745864788353,46.64813613,146.72,146.7,6.8141]
[1745864788554,39.83463613,146.72,146.65,25.1]
[1745864788854,39.83463613,146.72,146.67,6.8151]
[1745864789251,14.73463613,146.7,146.67,6.8151]
[1745864789456,14.73463613,146.7,146.68,6.815]
[1745864789857,21.54913613,146.7,146.66,6.8157]
[1745864790858,21.54913613,146.7,146.67,6.8155]
[1745864791258,6.8139,146.71,146.65,25.1]
[1745864792962,6.8139,146.71,146.67,6.8152]
[1745864794163,6.8142,146.7,146.67,6.8152]
[1745864795163,6.814,146.71,146.67,6.8152]
[1745864796458,39.83463613,146.72,146.67,6.8152]
[1745864796758,6.8143,146.7,146.67,6.8152]
[1745864797964,6.8147,146.69,146.66,6.8158]
[1745864798461,14.73463613,146.7,146.63,6.12]
[1745864798662,14.73463613,146.68,146.62,25.08]
[1745864798861,14.73463613,146.66,146.62,25.08]
[1745864799262,21.55093613,146.66,146.63,6.8174]
[1745864804672,14.73463613,146.66,146.59,25.1]
[1745864805573,6.8175,146.63,146.6,6.8186]
[1745864806371,2.0698,146.67,146.59,25.1]
[1745864806372,14.73463613,146.64,146.59,25.1]
[1745864807271,6.8182,146.62,146.59,25.1]
[1745864808274,6.8182,146.62,146.6,6.8188]
[1745864811080,14.73463613,146.64,146.61,6.8183]
[1745864811379,14.73463613,146.66,146.59,39.83463613]
[1745864811682,6.8168,146.65,146.62,6.8175]
[1745864812080,14.73463613,146.66,146.62,6.8175]
[1745864812282,6.8175,146.63,146.61,6.8182]
[1745864812781,1.18690314,146.72,146.61,21.55463613]
[1745864812987,64.27949373,146.76,146.71,14.73463613]
[1745864813181,64.27949373,146.76,146.72,39.83463613]
[1745864813385,14.73463613,146.82,146.72,39.83463613]
[1745864813386,64.27949373,146.78,146.72,39.83463613]
[1745864814085,79.01412986,146.78,146.72,25.1]
[1745864814586,85.82462986,146.78,146.73,6.8125]
[1745864814783,79.01412986,146.78,146.72,25.1]
[1745864815287,79.01412986,146.78,146.74,6.8122]
[1745864815888,79.01412986,146.78,146.73,6.8127]
[1745864816187,79.01412986,146.78,146.7,39.83463613]
[1745864816485,6.8113,146.77,146.73,6.8125]
[1745864816679,6.8113,146.77,146.7,25.1]
[1745864817788,6.8113,146.77,146.73,6.8124]
[1745864818383,6.8113,146.77,146.74,6.8123]
[1745864818785,6.8106,146.78,146.7,25.1]
[1745864819287,6.8106,146.78,146.74,6.812]
[1745864819589,6.8112,146.77,146.7,25.1]
[1745864820191,6.8112,146.77,146.72,6.8132]
[1745864820385,6.8115,146.76,146.72,6.8132]
[1745864820787,52.65348341,146.79,146.73,6.8123]
[1745864821091,6.8111,146.77,146.73,6.8123]
[1745864821286,52.65348341,146.79,146.74,6.812]
[1745864821589,6.8107,146.78,146.74,6.812]
[1745864821786,52.65348341,146.79,146.7,25.1]
[1745864822291,6.8118,146.76,146.7,25.1]
[1745864822490,52.65348341,146.79,146.72,6.813]
[1745864822791,23.57128341,146.76,146.7,25.1]
[1745864822986,23.57128341,146.76,146.7,31.9142]
[1745864823190,6.8125,146.74,146.68,490.78]
[1745864823391,6.8125,146.74,146.68,515.86]
[1745864823692,6.8125,146.74,146.7,6.8139]
[1745864824092,6.8125,146.74,146.71,6.8136]
[1745864824787,6.8125,146.74,146.7,6.814]
[1745864824989,23.57128341,146.76,146.68,515.86]
[1745864825191,52.65348341,146.79,146.68,515.86]
[1745864825387,52.65348341,146.79,146.71,6.8134]
[1745864825593,6.8123,146.75,146.71,6.8134]
[1745864826093,6.8112,146.77,146.69,23.57128341]
[1745864826696,6.8112,146.77,146.69,25.62218341]
[1745864827198,6.8107,146.78,146.74,6.812]
[1745864827399,25.1,146.79,146.72,25.08]
[1745864827601,23.57128341,146.78,146.72,25.08]
[1745864827900,6.8123,146.75,146.72,25.08]
[1745864828096,23.57128341,146.78,146.72,25.08]
[1745864828294,23.57128341,146.78,146.69,25.06]
[1745864828693,23.57128341,146.78,146.69,31.8742]
[1745864829092,6.8131,146.73,146.69,31.8742]
[1745864829802,6.8134,146.72,146.69,31.8742]
[1745864830501,6.8138,146.71,146.69,31.8742]
[1745864830697,6.8138,146.71,146.69,25.06]
[1745864831302,1.9772,146.74,146.69,25.06]
[1745864831694,6.814,146.71,146.69,25.06]
[1745864832704,6.814,146.71,146.69,31.8747]
[1745864833807,6.814,146.71,146.69,25.06]
[1745864836307,6.8142,146.7,146.69,25.06]
[1745864837307,6.8139,146.71,146.69,25.06]
[1745864840809,6.8135,146.72,146.69,25.06]
[1745864841211,6.8135,146.72,146.69,31.8744]
[1745864841710,6.813,146.73,146.7,6.8141]
[1745864841905,1.9772,146.74,146.69,25.06]
[1745864842100,16.71638348,146.74,146.69,25.06]
[1745864842807,6.8137,146.72,146.69,31.8746]
[1745864843009,16.71638348,146.74,146.69,31.8746]
[1745864843306,16.71638348,146.74,146.69,25.06]
[1745864843510,6.814,146.71,146.69,25.06]
[1745864845110,6.814,146.71,146.69,31.8747]
[1745864845409,14.73918348,146.72,146.69,25.06]
[1745864845805,6.814,146.71,146.68,6.8149]
[1745864847114,6.814,146.71,146.69,6.8146]
[1745864849913,6.8142,146.7,146.68,6.8151]
[1745864850511,6.814,146.71,146.68,6.8151]
[1745864850712,14.73918348,146.72,146.69,6.8143]
[1745864851013,21.55288348,146.72,146.69,6.8143]
[1745864851311,14.73918348,146.72,146.69,6.8143]
[1745864851508,21.55268348,146.72,146.69,6.8143]
[1745864852510,6.813,146.73,146.7,6.8139]
[1745864854113,6.813,146.73,146.71,6.8136]
[1745864856812,6.813,146.73,146.7,6.814]
[1745864857318,14.73918348,146.74,146.66,25.06]
[1745864857617,14.73918348,146.74,146.69,6.8143]
[1745864858020,6.8135,146.72,146.66,25.06]
[1745864858217,6.8135,146.72,146.7,6.814]
[1745864858414,14.73918348,146.74,146.7,6.814]
[1745864858614,6.8133,146.73,146.7,6.814]
[1745864858815,14.73918348,146.74,146.7,6.814]
[1745864859419,6.8135,146.72,146.7,6.814]
[1745864861622,6.8139,146.71,146.69,6.8144]
[1745864861821,14.73918348,146.74,146.66,25.06]
[1745864862022,16.67388348,146.74,146.65,2.008]
[1745864862222,6.8141,146.71,146.68,6.8151]
[1745864862423,16.67388348,146.74,146.66,25.06]
[1745864863222,16.67388348,146.74,146.68,6.815]
[1745864864023,6.8141,146.71,146.68,6.815]
[1745864864323,6.8141,146.71,146.66,25.06]
[1745864864824,6.8141,146.71,146.68,6.8149]
[1745864866625,14.73918348,146.7,146.63,27.1865]
[1745864867025,25.06,146.71,146.66,6.8158]
[1745864867527,6.815,146.69,146.66,6.8158]
[1745864867722,25.06,146.71,146.66,6.8158]
[1745864868131,6.8151,146.69,146.66,6.8158]
[1745864869823,6.8151,146.68,146.63,27.1865]
[1745864870229,6.8149,146.69,146.66,6.8159]
[1745864871622,25.06,146.71,146.66,6.8159]
[1745864872031,25.06,146.71,146.63,27.1865]
[1745864872231,2.0467,146.73,146.64,16.86048348]
[1745864872731,6.8142,146.71,146.64,16.86048348]
[1745864873532,6.8142,146.71,146.68,6.8149]
[1745864873832,25.06,146.77,146.68,39.79918348]
[1745864874333,25.06,146.77,146.72,6.8131]
[1745864874735,6.8121,146.75,146.72,6.8131]
[1745864874931,25.06,146.77,146.73,6.8128]
[1745864875930,6.8116,146.76,146.73,6.8128]
[1745864876735,6.8119,146.75,146.72,6.8131]
[1745864877234,6.8119,146.75,146.69,2.0485]
[1745864878235,6.8116,146.76,146.73,6.8128]
[1745864882335,6.8119,146.75,146.69,4.0569]
[1745864882638,20.93008348,146.8,146.7,14.73918348]
[1745864882835,6.8107,146.78,146.75,6.8117]
[1745864883038,20.93008348,146.8,146.73,25.04]
[1745864884137,6.8101,146.79,146.76,6.8112]
[1745864885338,20.93008348,146.8,146.73,25.04]
[1745864885339,13.0007,146.8,146.77,6.8109]
[1745864885640,6.1909,146.8,146.73,25.04]
[1745864885936,6.8101,146.79,146.73,25.04]
[1745864887038,6.8101,146.79,146.76,6.8112]
[1745864888339,6.8107,146.78,146.75,6.8117]
[1745864888637,20.93008348,146.8,146.73,25.04]
[1745864888837,20.93008348,146.8,146.74,6.8121]
[1745864888838,6.8112,146.77,146.74,6.8121]
[1745864889537,6.8116,146.76,146.74,6.8121]
[1745864890042,14.73918348,146.78,146.75,6.8118]
[1745864890642,6.8112,146.77,146.75,6.8118]
[1745864892739,6.8112,146.77,146.74,6.8121]
[1745864893137,14.73918348,146.78,146.69,31.0962]
[1745864893343,14.73918348,146.76,146.69,27.0885]
[1745864893643,14.73918348,146.72,146.69,31.8544]
[1745864893842,14.73918348,146.72,146.66,25.04]
[1745864894241,6.814,146.71,146.66,25.04]
[1745864895645,6.814,146.71,146.68,6.8147]
[1745864895842,6.814,146.71,146.66,25.04]
[1745864896545,6.8143,146.7,146.66,25.04]
[1745864896841,14.73918348,146.72,146.66,25.04]
[1745864897247,6.814,146.71,146.66,25.04]
[1745864897749,6.814,146.71,146.67,6.8151]
[1745864898048,14.73918348,146.72,146.66,25.04]
[1745864898249,25.04,146.73,146.66,25.04]
[1745864898250,14.73918348,146.7,146.66,25.04]
[1745864898752,6.8151,146.69,146.66,25.04]
[1745864899451,6.8154,146.68,146.66,25.04]
[1745864899745,6.8154,146.68,146.63,27.0188]
[1745864899947,6.8152,146.68,146.64,6.8166]
[1745864900548,6.8152,146.68,146.65,6.8163]
[1745864902545,6.8156,146.67,146.64,6.8168]
[1745864902750,14.73918348,146.7,146.63,27.0188]
[1745864903351,14.73918348,146.7,146.63,25.04]
[1745864903752,6.8159,146.67,146.64,6.8167]
[1745864904461,6.8159,146.67,146.65,6.8165]
[1745864904664,6.8159,146.67,146.63,25.04]
[1745864905659,21.55448348,146.68,146.63,25.04]
[1745864906263,21.55448348,146.68,146.65,6.8161]
[1745864906564,21.55448348,146.68,146.63,25.04]
[1745864907465,21.55448348,146.68,146.65,6.8163]
[1745864910767,6.8157,146.67,146.64,6.8168]
[1745864912364,6.8157,146.67,146.65,6.8164]
[1745864914168,6.8161,146.66,146.64,6.8168]
[1745864914771,6.8157,146.67,146.65,6.8165]
[1745864915870,21.55448348,146.68,146.65,6.8165]
[1745864916573,6.8156,146.67,146.65,6.8165]
[1745864917873,6.8156,146.67,146.64,6.8167]
[1745864918773,6.8161,146.66,146.64,6.8167]
[1745864918975,14.73918348,146.68,146.64,6.8167]
[1745864919574,6.8159,146.67,146.64,6.8167]
[1745864923874,6.8159,146.67,146.65,6.8165]
[1745864924573,6.8162,146.66,146.64,6.8168]
[1745864924773,14.73918348,146.67,146.63,25.04]
[1745864925074,6.8161,146.66,146.63,25.04]
[1745864925668,6.8158,146.67,146.65,6.8165]
[1745864926167,39.77918348,146.69,146.63,25.04]
[1745864927476,6.8155,146.68,146.65,6.8162]
[1745864929379,6.8157,146.67,146.65,6.8162]
[1745864929581,39.77918348,146.69,146.64,6.8168]
[1745864929782,14.73918348,146.67,146.6,26.9609]
[1745864930279,14.73918348,146.67,146.6,25.04]
[1745864930479,6.8172,146.64,146.6,25.04]
[1745864931281,6.8172,146.64,146.62,6.8176]
[1745864931480,6.8167,146.65,146.62,6.8176]
[1745864934084,6.8174,146.63,146.6,31.8584]
[1745864934282,6.8174,146.63,146.6,25.04]
[1745864934582,14.73918348,146.67,146.6,25.04]
[1745864934782,6.8168,146.65,146.62,6.8176]
[1745864936786,6.817,146.64,146.62,6.8176]
[1745864939884,6.8167,146.65,146.62,6.8176]
[1745864943784,9.44332715,146.63,146.62,6.8176]
[1745864944189,9.44332715,146.64,146.63,6.8174]
[1745864944981,9.44332715,146.64,146.62,6.8177]
[1745864945186,9.44332715,146.63,146.62,6.8177]
[1745864945390,9.44332715,146.63,146.61,6.8181]
[1745864946492,16.26102715,146.63,146.61,6.8181]
[1745864946892,9.44332715,146.63,146.61,6.8181]
[1745864948692,16.26102715,146.63,146.61,6.8181]
[1745864949294,9.44332715,146.63,146.61,6.8181]
[1745864949993,16.26082715,146.63,146.61,6.8181]
[1745864950190,9.44332715,146.63,146.61,6.8181]
[1745864951593,9.44332715,146.62,146.61,6.8181]
[1745864951794,9.44332715,146.63,146.62,6.8178]
[1745864952493,9.44332715,146.63,146.61,6.8181]
[1745864953599,16.26082715,146.63,146.61,6.8181]
[1745864953898,16.26082715,146.63,146.6,31.8586]
[1745864954093,9.44332715,146.63,146.6,31.8586]
[1745864954496,9.44332715,146.61,146.6,25.04]
[1745864954698,9.44332715,146.61,146.57,25.02]
[1745864954997,9.44332715,146.59,146.52,9.44332715]
[1745864955190,9.44332715,146.57,146.56,6.8206]
[1745864955697,21.58613743,146.6,146.57,6.8202]
[1745864956396,21.58613743,146.6,146.51,20.79623743]
[1745864956397,14.76703743,146.58,146.52,25.02]
[1745864957598,6.821,146.56,146.53,6.8219]
[1745864959001,6.821,146.56,146.54,6.8215]
[1745864959898,6.821,146.56,146.53,6.8219]
[1745864962002,14.76703743,146.58,146.52,25.02]
[1745864962900,6.8203,146.57,146.55,6.821]
[1745864963298,6.8203,146.57,146.52,25.02]
[1745864964205,14.76703743,146.58,146.52,25.02]
[1745864964609,6.8204,146.57,146.54,6.8214]
[1745864965202,14.76703743,146.58,146.54,6.8214]
[1745864965403,21.58693743,146.58,146.52,25.02]
[1745864966607,21.58693743,146.58,146.55,6.8207]
[1745864969015,21.58693743,146.58,146.56,6.8206]
[1745864973314,6.8203,146.57,146.52,25.02]
[1745864973612,14.76703743,146.58,146.52,25.02]
[1745864973820,14.76703743,146.56,146.52,25.02]
[1745864974017,6.8212,146.55,146.52,25.02]
[1745864974214,14.76703743,146.56,146.52,25.02]
[1745864974519,21.58793743,146.56,146.52,25.02]
[1745864974720,14.76703743,146.56,146.52,25.02]
[1745864974920,14.76703743,146.54,146.52,25.02]
[1745864975120,21.58873743,146.54,146.52,6.8223]
[1745864975517,9.45674932,146.53,146.52,6.8223]
[1745864977523,6.8217,146.54,146.52,6.8223]
[1745864977722,21.59727874,146.55,146.52,6.8223]
[1745864978919,6.8219,146.54,146.51,6.8228]
[1745864980619,6.8221,146.53,146.5,6.8233]
[1745864980815,14.77587874,146.55,146.49,515.8]
[1745864981220,6.8219,146.54,146.51,6.823]
[1745864983517,14.77587874,146.55,146.49,515.8]
[1745864984018,43.85387874,146.57,146.49,515.8]
[1745864984724,50.67437874,146.57,146.54,6.8213]
[1745864985624,6.8207,146.56,146.54,6.8213]
[1745864985919,43.85387874,146.57,146.49,515.8]
[1745864986122,6.8219,146.54,146.49,25.02]
[1745864986321,14.77587874,146.53,146.49,25.02]
[1745864986519,14.77587874,146.53,146.49,31.8437]
[1745864986824,21.59917874,146.51,146.46,25.02]
[1745864987124,21.59917874,146.51,146.48,6.8241]
[1745864987727,21.59917874,146.51,146.49,6.8239]
[1745864988720,21.59857874,146.52,146.49,6.8239]
[1745864989223,6.8227,146.52,146.5,6.8234]
[1745864989524,14.77587874,146.54,146.5,6.8234]
[1745864989727,14.77587874,146.54,146.49,6.8237]
[1745864990024,14.77587874,146.54,146.46,25.02]
[1745864990224,14.77587874,146.54,146.51,6.8227]
[1745864990524,6.8221,146.53,146.51,6.8227]
[1745864994830,21.59757874,146.54,146.51,6.8227]
[1745864996227,21.59757874,146.54,146.52,6.8226]
[1745864996431,43.85387874,146.57,146.47,14.77587874]
[1745864996625,43.85387874,146.57,146.48,4.0503]
[1745864996928,43.85387874,146.57,146.53,6.8218]
[1745864997226,6.821,146.56,146.53,6.8218]
[1745864997524,43.85387874,146.57,146.53,6.8218]
[1745864998028,6.8214,146.55,146.53,6.8218]
[1745864998228,43.85387874,146.57,146.52,6.8223]
[1745864999728,6.8215,146.55,146.52,6.8223]
[1745865000626,43.85387874,146.57,146.5,25.02]
[1745865001022,14.77587874,146.55,146.5,25.02]
[1745865001226,6.8223,146.53,146.5,31.8431]
[1745865001426,6.8223,146.53,146.5,25.02]
[1745865001627,14.77587874,146.55,146.5,25.02]
[1745865001826,14.77587874,146.55,146.51,6.8228]
[1745865002028,14.77587874,146.55,146.5,25.02]
[1745865002029,14.77587874,146.53,146.5,25.02]
[1745865002730,14.77587874,146.53,146.47,25.02]
[1745865002932,14.77587874,146.51,146.47,25.02]
[1745865003631,21.59917874,146.51,146.48,6.824]
[1745865004029,6.8233,146.51,146.47,25.02]
[1745865004333,6.8233,146.51,146.48,6.8243]
[1745865004533,6.8233,146.51,146.47,25.02]
[1745865005128,6.8227,146.52,146.47,25.02]
[1745865005633,6.8227,146.52,146.48,6.8242]
[1745865005634,6.8228,146.52,146.48,6.8242]
[1745865005837,6.8228,146.52,146.47,25.02]
[1745865006833,6.8228,146.52,146.49,6.8237]
[1745865007635,6.8231,146.51,146.49,6.8237]
[1745865007928,6.8231,146.51,146.48,6.8242]
[1745865008334,6.8231,146.51,146.49,6.8238]
[1745865009933,6.8226,146.52,146.5,6.8235]
[1745865010537,6.8226,146.52,146.49,6.8237]
[1745865011236,6.8226,146.52,146.5,6.8235]
[1745865011536,21.59817874,146.53,146.5,6.8235]
[1745865013839,6.8223,146.53,146.47,25.02]
[1745865014034,2.0462,146.56,146.49,14.77587874]
[1745865014238,43.85387874,146.57,146.49,14.77587874]
[1745865014437,33.8699,146.57,146.54,6.8214]
[1745865014640,27.0494,146.57,146.51,25.0]
[1745865014838,27.0494,146.57,146.53,6.8218]
[1745865015439,41.82527874,146.57,146.51,25.0]
[1745865016137,6.8217,146.54,146.52,6.8225]
[1745865019541,6.8221,146.54,146.51,31.8227]
[1745865020337,14.77587874,146.55,146.47,14.77587874]
[1745865020542,14.77587874,146.55,146.48,25.0]
[1745865021442,6.8221,146.53,146.5,6.8235]
[1745865021842,6.8221,146.53,146.48,25.0]
[1745865022141,2.0829,146.56,146.48,25.0]
[1745865022642,6.8214,146.55,146.52,6.8223]
[1745865023643,6.8217,146.54,146.52,6.8223]
[1745865023939,6.8217,146.54,146.51,6.8228]
[1745865024146,2.0829,146.56,146.51,6.8228]
[1745865024541,6.8224,146.53,146.51,6.8228]
[1745865024843,14.77587874,146.55,146.5,6.8233]
[1745865025844,14.77587874,146.55,146.51,6.823]
[1745865026746,6.8223,146.53,146.51,6.823]
[1745865027344,6.8219,146.54,146.51,6.823]
[1745865027545,2.0829,146.56,146.51,6.823]
[1745865028646,6.8223,146.53,146.51,6.823]
[1745865029144,6.8223,146.53,146.5,6.8233]
[1745865031347,2.0829,146.56,146.48,25.0]
[1745865032048,6.8225,146.53,146.5,6.8234]
[1745865033345,6.8225,146.53,146.48,25.0]
[1745865034247,6.8225,146.53,146.5,6.8233]
[1745865034945,6.8227,146.52,146.49,6.8239]
[1745865035347,2.0829,146.56,146.48,25.0]
[1745865035644,6.8223,146.53,146.5,6.8235]
[1745865035845,6.8223,146.53,146.48,25.0]
[1745865036250,6.8227,146.52,146.48,25.0]
[1745865036847,6.8227,146.52,146.49,6.8237]
[1745865038041,6.8227,146.52,146.5,6.8234]
[1745865039850,6.8223,146.53,146.5,6.8234]
[1745865040048,2.0829,146.56,146.49,6.8238]
[1745865040349,6.8223,146.53,146.48,25.0]
[1745865040550,6.8223,146.53,146.5,6.8234]
[1745865041546,6.8219,146.54,146.51,6.823]
[1745865041745,14.77587874,146.55,146.51,6.823]
[1745865042049,14.77587874,146.55,146.48,25.0]
[1745865042250,6.8223,146.53,146.5,6.8233]
[1745865044657,6.8229,146.52,146.49,6.8237]
[1745865045154,14.77587874,146.55,146.49,6.8237]
[1745865045646,14.77587874,146.55,146.48,31.8242]
[1745865045848,6.8228,146.52,146.48,25.0]
[1745865046349,14.77587874,146.53,146.48,25.0]
[1745865046557,14.77587874,146.51,146.45,24.98]
[1745865046750,14.77587874,146.49,146.43,6.8266]
[1745865047054,14.77587874,146.49,146.42,516.06]
[1745865047252,14.77587874,146.49,146.45,6.8256]
[1745865047955,14.77587874,146.49,146.46,6.8253]
[1745865048457,6.8243,146.49,146.46,6.8253]
[1745865050253,2.0718,146.55,146.45,14.77587874]
[1745865050461,427.27949373,146.61,146.5,14.77587874]
[1745865050657,43.80517874,146.6,146.51,24.98]
[1745865050960,14.77587874,146.56,146.51,24.98]
[1745865051256,14.77587874,146.56,146.48,24.98]
[1745865051457,21.59687874,146.56,146.53,6.822]
[1745865052658,14.77587874,146.56,146.54,6.8216]
[1745865053062,14.77587874,146.58,146.49,14.77587874]
[1745865053261,6.8198,146.59,146.51,14.77587874]
[1745865053462,6.8198,146.59,146.52,24.98]
[1745865053658,43.80517874,146.6,146.52,24.98]
[1745865053858,6.8198,146.58,146.55,6.8209]
[1745865054567,21.59567874,146.58,146.55,6.8209]
[1745865055065,21.59567874,146.58,146.54,6.8215]
[1745865055258,6.8202,146.57,146.54,6.8215]
[1745865055966,6.8209,146.56,146.53,6.8219]
[1745865056368,14.77587874,146.58,146.52,24.98]
[1745865057269,21.59587874,146.58,146.52,24.98]
[1745865057969,21.59587874,146.58,146.55,6.821]
[1745865058171,6.8195,146.59,146.55,6.821]
[1745865058564,43.80517874,146.6,146.55,6.821]
[1745865058766,6.8195,146.59,146.55,6.821]
[1745865059163,6.8195,146.59,146.56,6.8206]
[1745865060066,43.80517874,146.6,146.52,24.98]
[1745865060268,50.62417874,146.6,146.57,6.8202]
[1745865060565,43.80517874,146.6,146.52,24.98]
[1745865061066,6.8194,146.59,146.56,6.8205]
[1745865061470,6.8214,146.55,146.52,31.8023]
[1745865061670,14.77587874,146.58,146.52,24.98]
[1745865062066,6.821,146.56,146.53,6.8218]
[1745865063472,6.8212,146.55,146.52,31.8023]
[1745865064071,6.8209,146.56,146.53,6.822]
[1745865064577,14.77587874,146.58,146.53,6.822]
[1745865065376,14.77587874,146.58,146.52,24.98]
[1745865065577,6.82,146.58,146.52,24.98]
[1745865065877,6.82,146.58,146.55,6.8209]
[1745865068477,6.8195,146.59,146.52,24.98]
[1745865068776,6.8195,146.59,146.53,14.77587874]
[1745865069176,6.8195,146.59,146.56,6.8205]
[1745865070780,6.8199,146.58,146.56,6.8205]
[1745865071680,6.8195,146.59,146.56,6.8205]
[1745865072174,6.8195,146.59,146.57,6.8202]
[1745865072376,26.9803,146.6,146.53,14.77587874]
[1745865072679,14.77587874,146.62,146.53,14.77587874]
[1745865072881,14.77587874,146.62,146.53,16.88407874]
[1745865073480,14.77587874,146.62,146.54,2.0028]
[1745865073780,6.8185,146.61,146.58,6.8193]
[1745865074169,6.8185,146.61,146.56,24.96]
[1745865074578,6.8189,146.6,146.56,24.96]
[1745865074781,14.77587874,146.62,146.56,24.96]
[1745865074970,14.77587874,146.62,146.56,31.7806]
[1745865075173,6.8196,146.59,146.56,31.7806]
[1745865075377,6.8196,146.59,146.56,24.96]
[1745865075777,6.8196,146.59,146.57,6.82]
[1745865076474,6.8191,146.6,146.57,6.82]
[1745865077578,6.8194,146.59,146.57,6.82]
[1745865078082,6.8191,146.6,146.57,6.82]
[1745865082287,6.8193,146.59,146.57,6.82]
[1745865082584,6.8193,146.59,146.56,31.7805]
[1745865083583,6.8193,146.59,146.57,6.8202]